fUST/lending_fUST_20250625
["ID","MTS","AMOUNT","RATE_DAILY","PERIOD"]
[367451853,1750801849053,-153.0,0.00018751,2]
[367451855,1750801849063,-153.0,0.00018751,2]
[367451857,1750801849072,-153.0,0.00018751,2]
[367451859,1750801849081,-179.91004498,0.0001888,2]
[367451861,1750801849091,-223.37516702,0.000189,2]
[367451863,1750801849100,-151.0,0.00018904,2]
[367451865,1750801849109,-151.0,0.00018904,2]
[367451867,1750801849118,-182.393577,0.00018904,2]
[367451869,1750801849128,-151.0,0.00018904,2]
[367451871,1750801849137,-151.0,0.00018904,2]
[367451873,1750801849146,-151.0,0.00018904,2]
[367451875,1750801849155,-151.0,0.00018904,2]
[367451877,1750801849165,-151.0,0.00018904,2]
[367451879,1750801849175,-151.0,0.00018904,2]
[367451881,1750801849184,-460.0,0.00018904,2]
[367451883,1750801849193,-737.12,0.00018904,2]
[367451885,1750801849203,-513.0,0.00018904,2]
[367451887,1750801849212,-279.499968,0.00018904,2]
[367451889,1750801849221,-1128.68,0.00018904,2]
[367451891,1750801849230,-279.499968,0.00018904,2]
[367451893,1750801849239,-460.0,0.00018904,2]
[367451895,1750801849248,-538.08,0.00018904,2]
[367451897,1750801849258,-463.24,0.00018904,2]
[367451899,1750801849270,-688.74,0.00018904,2]
[367451901,1750801849279,-911.29,0.00018904,2]
[367451902,1750801849288,-460.0,0.00018904,2]
[367451905,1750801849298,-460.0,0.00018904,2]
[367451906,1750801849307,-1133.87,0.00018904,2]
[367451908,1750801849317,-547.38,0.00018904,2]
[367451910,1750801849326,-460.0,0.00018904,2]
[367451912,1750801849337,-460.0,0.00018904,2]
[367451914,1750801849347,-1108.8,0.00018904,2]
[367451916,1750801849357,-460.0,0.00018904,2]
[367451919,1750801849367,-1304.51,0.00018904,2]
[367451920,1750801849376,-151.0,0.00018904,2]
[367451922,1750801849386,-1197.79,0.00018904,2]
[367451924,1750801849395,-1095.89,0.00018904,2]
[367451926,1750801849405,-715.4,0.00018933,2]
[367451928,1750801849414,-1164.643758,0.00018942,2]
[367451930,1750801849423,-168.0,0.00018946,2]
[367451932,1750801849432,-151.0,0.00018986,2]
[367451934,1750801849442,-151.0,0.00018986,2]
[367451936,1750801849451,-183.337364,0.00018986,2]
[367451938,1750801849461,-151.0,0.00018986,2]
[367451940,1750801849470,-183.337364,0.00018986,2]
[367451942,1750801849479,-965.0,0.00018991,2]
[367451944,1750801849489,-2160.0,0.00018991,2]
[367451946,1750801849498,-654.0,0.00018991,2]
[367451948,1750801849506,-406.0,0.00018991,2]
[367451950,1750801849516,-151.0,0.00018992,2]
[367451952,1750801849526,-151.0,0.00018992,2]
[367451954,1750801849534,-197.492566,0.00018992,2]
[367451956,1750801849544,-574.8597778,0.00019047,2]
[367451958,1750801849554,-1776.08936911,0.00019053,2]
[367451960,1750801849564,-178.501211,0.00019063,2]
[367451962,1750801849573,-153.0,0.00019101,2]
[367451964,1750801849582,-715.4,0.00019102,2]
[367451966,1750801849591,-153.0,0.00019106,2]
[367451968,1750801849600,-153.0,0.00019106,2]
[367451970,1750801849609,-153.0,0.00019106,2]
[367451972,1750801849618,-153.0,0.00019106,2]
[367451974,1750801849627,-153.0,0.00019106,2]
[367451976,1750801849636,-153.0,0.00019106,2]
[367451978,1750801849645,-153.0,0.00019106,2]
[367451980,1750801849654,-153.0,0.00019106,2]
[367451982,1750801849663,-153.0,0.00019106,2]
[367451984,1750801849672,-153.0,0.00019106,2]
[367451986,1750801849682,-153.0,0.00019106,2]
[367451988,1750801849692,-153.0,0.00019106,2]
[367451990,1750801849701,-153.0,0.00019106,2]
[367451992,1750801849711,-153.0,0.00019106,2]
[367451994,1750801849720,-153.0,0.00019106,2]
[367451996,1750801849729,-151.0,0.00019178,2]
[367451998,1750801849738,-151.0,0.00019178,2]
[367451999,1750801849747,-151.0,0.00019178,2]
[367452001,1750801849757,-151.0,0.00019178,2]
[367452003,1750801849766,-168.68,0.00019178,2]
[367452005,1750801849776,-737.12,0.00019178,2]
[367452008,1750801849786,-513.0,0.00019178,2]
[367452009,1750801849795,-1128.68,0.00019178,2]
[367452012,1750801849804,-460.0,0.00019178,2]
[367452013,1750801849813,-538.08,0.00019178,2]
[367452015,1750801849823,-463.24,0.00019178,2]
[367452017,1750801849832,-688.74,0.00019178,2]
[367452019,1750801849841,-911.29,0.00019178,2]
[367452021,1750801849850,-460.0,0.00019178,2]
[367452023,1750801849859,-460.0,0.00019178,2]
[367452025,1750801849869,-1133.87,0.00019178,2]
[367452027,1750801849879,-547.38,0.00019178,2]
[367452029,1750801849889,-460.0,0.00019178,2]
[367452032,1750801849898,-405.75996337,0.00019178,2]
[367452033,1750801849907,-1108.8,0.00019178,2]
[367452035,1750801849917,-460.0,0.00019178,2]
[367452037,1750801849926,-1304.51,0.00019178,2]
[367452039,1750801849936,-1197.79,0.00019178,2]
[367452041,1750801849945,-1095.89,0.00019178,2]
[367452043,1750801849954,-693.557386,0.00019178,2]
[367452045,1750801849963,-151.0,0.000192,2]
[367452047,1750801849972,-151.0,0.000192,2]
[367452049,1750801849981,-151.0,0.000192,2]
[367452051,1750801849990,-176.128063,0.000192,2]
[367452053,1750801849999,-151.0,0.000192,2]
[367452055,1750801850008,-151.0,0.000192,2]
[367452057,1750801850018,-151.0,0.000192,2]
[367452059,1750801850028,-263.157945,0.000192,2]
[367452061,1750801850038,-151.0,0.000192,2]
[367452063,1750801850047,-266.368635,0.000192,2]
[367452065,1750801850056,-151.0,0.000192,2]
[367452067,1750801850065,-151.0,0.000192,2]
[367452069,1750801850075,-259.583745,0.000192,2]
[367452071,1750801850084,-151.0,0.000192,2]
[367452073,1750801850093,-151.0,0.000192,2]
[367452075,1750801850103,-151.0,0.000192,2]
[367452077,1750801850111,-151.0,0.000192,2]
[367452079,1750801850120,-191.127107,0.000192,2]
[367452081,1750801850131,-279.499968,0.000192,2]
[367452083,1750801850140,-279.499968,0.000192,2]
[367452085,1750801850149,-151.000001,0.000192,2]
[367452087,1750801850159,-297.439563,0.000192,2]
[367452089,1750801850168,-158.184494,0.000192,2]
[367452091,1750801850177,-158.184494,0.000192,2]
[367452093,1750801850187,-158.184494,0.000192,2]
[367452095,1750801850195,-158.184494,0.000192,2]
[367452097,1750801850204,-151.0,0.000192,2]
[367452099,1750801850214,-151.0,0.000192,2]
[367452101,1750801850223,-234.961675,0.000192,2]
[367452103,1750801850232,-234.961675,0.000192,2]
[367452105,1750801850241,-234.961675,0.000192,2]
[367452107,1750801850251,-234.961675,0.000192,2]
[367452109,1750801850259,-151.0,0.000192,2]
[367452111,1750801850272,-151.0,0.000192,2]
[367452113,1750801850281,-19038.0085803,0.000192,2]
[367452115,1750801850291,-19038.00858004,0.000192,2]
[367452117,1750801850300,-19038.00858004,0.000192,2]
[367452119,1750801850310,-19038.00858004,0.000192,2]
[367452121,1750801850319,-19038.00858004,0.000192,2]
[367452123,1750801850328,-19038.00858004,0.000192,2]
[367452125,1750801850338,-19038.00858004,0.000192,2]
[367452127,1750801850348,-19038.00858004,0.000192,2]
[367452129,1750801850357,-39.99554995,0.000192,2]
[367452165,1750801850695,-5291.13551306,0.000192,2]
[367452185,1750801850879,-460.0,0.00016438,2]
[367452186,1750801850889,-460.0,0.00016438,2]
[367452187,1750801850899,-199.74081682,0.00016438,2]
[367452188,1750801850909,-460.0,0.00016712,2]
[367452189,1750801850919,-460.0,0.00016712,2]
[367452190,1750801850928,-460.0,0.00016986,2]
[367452191,1750801850938,-460.0,0.00016986,2]
[367452193,1750801850947,-265.54738926,0.0001726,2]
[367452207,1750801851067,-194.45261074,0.0001726,2]
[367452209,1750801851076,-212.0,0.00017534,2]
[367452211,1750801851087,-389.06620431,0.000192,2]
[367453913,1750801898681,150.0,0.0002054,30]
[367453915,1750801913675,329.01388,0.00015767,2]
[367453916,1750802001222,3000.0,0.000229,30]
[367453917,1750802001721,3000.0,0.0002291,30]
[367453918,1750802002214,3000.0,0.0002292,30]
[367453919,1750802002579,3000.0,0.0002293,30]
[367453920,1750802003025,3000.0,0.0002294,30]
[367453921,1750802003790,3000.0,0.0002295,30]
[367453922,1750802004313,3000.0,0.0002296,30]
[367453923,1750802004764,3000.0,0.0002297,30]
[367453924,1750802005226,3000.0,0.0002298,30]
[367453925,1750802005762,3000.0,0.0002299,30]
[367453926,1750802006065,3000.0,0.00023,30]
[367453931,1750802080312,201.977612,0.00015614,2]
[367453941,1750802341968,881.98660614,0.00015662,2]
[367453942,1750802341992,20000.0,0.00015662,2]
[367453943,1750802342016,4018.01339386,0.00015662,2]
[367453971,1750802433540,56654.0,0.00023,30]
[367453975,1750802507642,549.958721,0.00013699,2]
[367453982,1750802889973,2938.1870257,0.00015437,2]
[367454018,1750803032401,-177.31747365,0.00016338,2]
[367454020,1750803032413,-243.85126903,0.00016338,2]
[367454022,1750803032422,-268.76,0.00016428,3]
[367454024,1750803032431,-205.11849468,0.00016428,3]
[367454028,1750803032460,-601.18150532,0.00016428,3]
[367454029,1750803032469,-1200.0,0.00016434,2]
[367454031,1750803032478,-300.0,0.00016435,2]
[367454034,1750803032488,-300.0,0.00016435,2]
[367454036,1750803032497,-500.0,0.00016436,2]
[367454038,1750803032506,-306.37838964,0.00016436,2]
[367454039,1750803032515,-260.65816979,0.00016436,2]
[367454042,1750803032526,-8.17565991,0.00016436,2]
[367454044,1750803032535,-500.0,0.00016436,2]
[367454046,1750803032544,-292.79920949,0.00016436,2]
[367454048,1750803032553,-500.0,0.00016436,2]
[367454050,1750803032562,-500.0,0.00016436,2]
[367454052,1750803032571,-500.0,0.00016436,2]
[367454054,1750803032580,-500.0,0.00016436,2]
[367454057,1750803032589,-500.0,0.00016436,2]
[367454060,1750803032598,-364.15325658,0.00016436,2]
[367454062,1750803032607,-157.80054132,0.00016436,2]
[367454064,1750803032615,-500.0,0.00016436,2]
[367454067,1750803032624,-403.80261438,0.00016436,2]
[367454072,1750803032634,-500.0,0.00016436,2]
[367454074,1750803032643,-500.0,0.00016436,2]
[367454077,1750803032652,-500.0,0.00016436,2]
[367454080,1750803032664,-617.80234629,0.00016437,2]
[367454082,1750803032673,-617.80234629,0.00016437,2]
[367454086,1750803032683,-617.80234629,0.00016437,2]
[367454089,1750803032692,-617.80234629,0.00016437,2]
[367454093,1750803032702,-617.80234629,0.00016437,2]
[367454095,1750803032711,-617.80234629,0.00016437,2]
[367454098,1750803032720,-617.80234629,0.00016437,2]
[367454101,1750803032729,-617.80234629,0.00016437,2]
[367454104,1750803032739,-617.80234629,0.00016437,2]
[367454107,1750803032749,-617.80234629,0.00016437,2]
[367454109,1750803032758,-617.80234629,0.00016437,2]
[367454111,1750803032769,-617.80234629,0.00016437,2]
[367454114,1750803032778,-617.80234629,0.00016437,2]
[367454117,1750803032787,-617.80234629,0.00016437,2]
[367454120,1750803032797,-617.80234629,0.00016437,2]
[367454122,1750803032806,-617.80234629,0.00016437,2]
[367454124,1750803032815,-617.80234629,0.00016437,2]
[367454126,1750803032824,-617.80234629,0.00016437,2]
[367454128,1750803032833,-633.24740496,0.00016437,2]
[367454130,1750803032842,-633.24740496,0.00016437,2]
[367454132,1750803032851,-633.24740496,0.00016437,2]
[367454134,1750803032861,-633.24740496,0.00016437,2]
[367454136,1750803032870,-633.24740496,0.00016437,2]
[367454139,1750803032890,-633.24740496,0.00016437,2]
[367454141,1750803032899,-633.24740496,0.00016437,2]
[367454143,1750803032909,-633.24740496,0.00016437,2]
[367454145,1750803032919,-633.24740496,0.00016437,2]
[367454147,1750803032928,-633.24740496,0.00016437,2]
[367454149,1750803032939,-633.24740496,0.00016437,2]
[367454151,1750803032948,-633.24740496,0.00016437,2]
[367454153,1750803032958,-460.0,0.00016438,2]
[367454156,1750803032969,-460.0,0.00016438,2]
[367454158,1750803032978,-460.0,0.00016438,2]
[367454160,1750803032988,-460.0,0.00016438,2]
[367454162,1750803032997,-430.0,0.00016438,2]
[367454164,1750803033007,-460.0,0.00016438,2]
[367454166,1750803033017,-460.0,0.00016438,2]
[367454168,1750803033026,-460.0,0.00016438,2]
[367454170,1750803033035,-460.0,0.00016438,2]
[367454172,1750803033045,-460.0,0.00016438,2]
[367454174,1750803033055,-460.0,0.00016438,2]
[367454176,1750803033067,-427.42766837,0.00016438,2]
[367454178,1750803033076,-460.0,0.00016438,2]
[367454180,1750803033086,-460.0,0.00016438,2]
[367454183,1750803033095,-460.0,0.00016438,2]
[367454185,1750803033105,-460.0,0.00016438,2]
[367454187,1750803033115,-460.0,0.00016438,2]
[367454189,1750803033125,-460.0,0.00016438,2]
[367454191,1750803033135,-460.0,0.00016438,2]
[367454193,1750803033146,-460.0,0.00016438,2]
[367454195,1750803033156,-460.0,0.00016438,2]
[367454197,1750803033166,-460.0,0.00016438,2]
[367454199,1750803033176,-460.57068682,0.00016438,2]
[367454201,1750803033186,-417.7518494,0.00016438,2]
[367454203,1750803033196,-460.0,0.00016438,2]
[367454205,1750803033205,-460.0,0.00016438,2]
[367454207,1750803033215,-460.0,0.00016438,2]
[367454209,1750803033225,-460.0,0.00016438,2]
[367454211,1750803033235,-460.0,0.00016438,2]
[367454214,1750803033244,-460.0,0.00016438,2]
[367454216,1750803033254,-377.2022589,0.00016438,2]
[367454218,1750803033265,-460.0,0.00016438,2]
[367454220,1750803033274,-460.0,0.00016438,2]
[367454222,1750803033283,-460.0,0.00016438,2]
[367454224,1750803033293,-460.0,0.00016438,2]
[367454226,1750803033302,-460.0,0.00016438,2]
[367454228,1750803033312,-460.0,0.00016438,2]
[367454230,1750803033322,-410.0,0.00016438,2]
[367454232,1750803033332,-460.0,0.00016438,2]
[367454234,1750803033341,-460.0,0.00016438,2]
[367454236,1750803033351,-500.0,0.00016438,2]
[367454238,1750803033361,-608.86580792,0.00016438,2]
[367454240,1750803033371,-1000.0,0.00016438,2]
[367454242,1750803033381,-460.0,0.00016438,2]
[367454244,1750803033391,-400.0,0.00016438,2]
[367454245,1750803033401,-440.0,0.00016438,2]
[367454247,1750803033411,-460.0,0.00016438,2]
[367454249,1750803033421,-460.0,0.00016438,2]
[367454251,1750803033430,-460.0,0.00016438,2]
[367454253,1750803033440,-460.0,0.00016438,2]
[367454255,1750803033449,-460.0,0.00016438,2]
[367454257,1750803033459,-460.0,0.00016438,2]
[367454259,1750803033468,-460.0,0.00016438,2]
[367454261,1750803033478,-460.0,0.00016438,2]
[367454263,1750803033487,-460.0,0.00016438,2]
[367454291,1750803033737,-320.0,0.00016438,2]
[367454293,1750803033749,-460.0,0.00016438,2]
[367454295,1750803033759,-460.0,0.00016438,2]
[367454297,1750803033769,-460.0,0.00016438,2]
[367454299,1750803033780,-460.0,0.00016438,2]
[367454301,1750803033789,-460.0,0.00016438,2]
[367454303,1750803033799,-460.0,0.00016438,2]
[367454305,1750803033808,-460.0,0.00016438,2]
[367454307,1750803033818,-460.880334,0.00016438,2]
[367454309,1750803033827,-460.0,0.00016438,2]
[367454311,1750803033837,-320.74979638,0.00016438,2]
[367454313,1750803033846,-500.0,0.00016438,2]
[367454315,1750803033855,-470.82373371,0.00016438,2]
[367454317,1750803033865,-440.0,0.00016438,2]
[367454319,1750803033876,-460.0,0.00016438,2]
[367454321,1750803033886,-460.0,0.00016438,2]
[367454323,1750803033895,-460.0,0.00016438,2]
[367454325,1750803033905,-228.77772196,0.00016438,2]
[367454329,1750803033925,-234.98219653,0.00016438,2]
[367454331,1750803033934,-460.0,0.00016438,2]
[367454333,1750803033944,-460.0,0.00016438,2]
[367454335,1750803033954,-460.0,0.00016438,2]
[367454337,1750803033963,-460.0,0.00016438,2]
[367454339,1750803033972,-500.0,0.00016438,2]
[367454341,1750803033982,-460.0,0.00016438,2]
[367454343,1750803033991,-460.0,0.00016438,2]
[367454345,1750803034000,-164.21310945,0.00016438,2]
[367454347,1750803034013,-248.75502671,0.00016438,2]
[367454349,1750803034023,-460.0,0.00016438,2]
[367454351,1750803034033,-460.0,0.00016438,2]
[367454352,1750803034042,-154.10415926,0.00016438,2]
[367454354,1750803034052,-460.0,0.00016438,2]
[367454356,1750803034062,-460.0,0.00016438,2]
[367454358,1750803034072,-460.0,0.00016438,2]
[367454360,1750803034082,-460.0,0.00016438,2]
[367454362,1750803034091,-460.0,0.00016438,2]
[367454364,1750803034101,-460.0,0.00016438,2]
[367454366,1750803034110,-460.0,0.00016438,2]
[367454368,1750803034120,-460.0,0.00016438,2]
[367454370,1750803034129,-460.0,0.00016438,2]
[367454372,1750803034139,-460.0,0.00016438,2]
[367454374,1750803034148,-460.0,0.00016438,2]
[367454376,1750803034158,-460.0,0.00016438,2]
[367454378,1750803034168,-460.0,0.00016438,2]
[367454380,1750803034178,-460.0,0.00016438,2]
[367454382,1750803034187,-425.07301193,0.00016438,2]
[367454384,1750803034196,-430.0,0.00016438,2]
[367454386,1750803034209,-460.0,0.00016438,2]
[367454388,1750803034219,-460.0,0.00016438,2]
[367454390,1750803034228,-460.0,0.00016438,2]
[367454392,1750803034238,-460.0,0.00016438,2]
[367454394,1750803034248,-460.0,0.00016438,2]
[367454396,1750803034258,-460.0,0.00016438,2]
[367454398,1750803034267,-460.0,0.00016438,2]
[367454400,1750803034276,-460.77920377,0.00016438,2]
[367454402,1750803034286,-460.0,0.00016438,2]
[367454404,1750803034295,-460.0,0.00016438,2]
[367454406,1750803034304,-442.50372634,0.00016438,2]
[367454408,1750803034314,-460.0,0.00016438,2]
[367454410,1750803034323,-460.0,0.00016438,2]
[367454412,1750803034332,-460.0,0.00016438,2]
[367454414,1750803034342,-460.0,0.00016438,2]
[367454416,1750803034351,-460.0,0.00016438,2]
[367454418,1750803034360,-460.0,0.00016438,2]
[367454420,1750803034370,-460.0,0.00016438,2]
[367454422,1750803034379,-460.0,0.00016438,2]
[367454424,1750803034388,-460.0,0.00016438,2]
[367454426,1750803034397,-498.95844428,0.00016438,2]
[367454428,1750803034407,-460.0,0.00016438,2]
[367454430,1750803034417,-460.0,0.00016438,2]
[367454432,1750803034426,-460.0,0.00016438,2]
[367454434,1750803034437,-460.0,0.00016438,2]
[367454436,1750803034448,-460.0,0.00016438,2]
[367454438,1750803034457,-494.8,0.00016438,2]
[367454440,1750803034466,-460.0,0.00016438,2]
[367454442,1750803034475,-460.0,0.00016438,2]
[367454444,1750803034484,-460.0,0.00016438,2]
[367454446,1750803034493,-460.0,0.00016438,2]
[367454448,1750803034503,-460.0,0.00016438,2]
[367454450,1750803034512,-460.0,0.00016438,2]
[367454452,1750803034522,-460.0,0.00016438,2]
[367454453,1750803034532,-460.0,0.00016438,2]
[367454454,1750803034545,-460.0,0.00016438,2]
[367454455,1750803034554,-460.0,0.00016438,2]
[367454456,1750803034562,-460.0,0.00016438,2]
[367454457,1750803034573,-460.95638873,0.00016438,2]
[367454458,1750803034583,-460.0,0.00016438,2]
[367454459,1750803034592,-509.724868,0.00016438,2]
[367454460,1750803034601,-460.0,0.00016438,2]
[367454461,1750803034611,-460.0,0.00016438,2]
[367454462,1750803034623,-420.0,0.00016438,2]
[367454463,1750803034632,-460.0,0.00016438,2]
[367454464,1750803034641,-460.0,0.00016438,2]
[367454465,1750803034650,-460.0,0.00016438,2]
[367454466,1750803034663,-460.0,0.00016438,2]
[367454467,1750803034671,-460.0,0.00016438,2]
[367454468,1750803034680,-500.0,0.00016438,2]
[367454469,1750803034689,-460.0,0.00016438,2]
[367454471,1750803034698,-460.0,0.00016438,2]
[367454472,1750803034708,-460.0,0.00016438,2]
[367454474,1750803034718,-463.90388818,0.00016438,2]
[367454476,1750803034727,-255.24297421,0.00016438,2]
[367454479,1750803034738,-460.99290655,0.00016438,2]
[367454480,1750803034748,-460.0,0.00016438,2]
[367454482,1750803034757,-460.0,0.00016438,2]
[367454485,1750803034766,-460.0,0.00016438,2]
[367454486,1750803034775,-460.0,0.00016438,2]
[367454489,1750803034786,-460.0,0.00016438,2]
[367454491,1750803034801,-460.0,0.00016438,2]
[367454494,1750803034815,-500.0,0.00016438,2]
[367454496,1750803034825,-460.0,0.00016438,2]
[367454498,1750803034835,-460.0,0.00016438,2]
[367454500,1750803034844,-460.0,0.00016438,2]
[367454502,1750803034854,-460.0,0.00016438,2]
[367454504,1750803034864,-460.0,0.00016438,2]
[367454506,1750803034874,-474.21451788,0.00016438,2]
[367454508,1750803034884,-460.0,0.00016438,2]
[367454510,1750803034894,-460.0,0.00016438,2]
[367454512,1750803034903,-460.0,0.00016438,2]
[367454514,1750803034914,-460.0,0.00016438,2]
[367454516,1750803034923,-460.0,0.00016438,2]
[367454518,1750803034933,-460.0,0.00016438,2]
[367454520,1750803034943,-460.0,0.00016438,2]
[367454522,1750803034952,-460.0,0.00016438,2]
[367454524,1750803034962,-500.0,0.00016438,2]
[367454526,1750803034972,-420.0,0.00016438,2]
[367454528,1750803034982,-460.0,0.00016438,2]
[367454531,1750803034992,-460.0,0.00016438,2]
[367454533,1750803035004,-463.67836768,0.00016438,2]
[367454535,1750803035014,-460.0,0.00016438,2]
[367454537,1750803035023,-421.93519915,0.00016438,2]
[367454539,1750803035033,-460.0,0.00016438,2]
[367454541,1750803035042,-500.0,0.00016438,2]
[367454543,1750803035052,-500.0,0.00016438,2]
[367454545,1750803035062,-460.13026774,0.00016438,2]
[367454547,1750803035071,-400.0,0.00016438,2]
[367454549,1750803035081,-460.0,0.00016438,2]
[367454551,1750803035091,-460.0,0.00016438,2]
[367454553,1750803035101,-350.0,0.00016438,2]
[367454555,1750803035110,-460.0,0.00016438,2]
[367454557,1750803035120,-460.0,0.00016438,2]
[367454559,1750803035129,-460.0,0.00016438,2]
[367454561,1750803035139,-430.0,0.00016438,2]
[367454563,1750803035149,-463.24448256,0.00016438,2]
[367454565,1750803035159,-450.0,0.00016438,2]
[367454567,1750803035169,-460.0,0.00016438,2]
[367454569,1750803035187,-460.0,0.00016438,2]
[367454571,1750803035197,-460.0,0.00016438,2]
[367454573,1750803035207,-400.0,0.00016438,2]
[367454575,1750803035216,-400.0,0.00016438,2]
[367454577,1750803035226,-460.0,0.00016438,2]
[367454579,1750803035236,-460.0,0.00016438,2]
[367454582,1750803035245,-460.0,0.00016438,2]
[367454584,1750803035255,-460.0,0.00016438,2]
[367454586,1750803035264,-460.0,0.00016438,2]
[367454588,1750803035273,-460.0,0.00016438,2]
[367454590,1750803035282,-460.0,0.00016438,2]
[367454592,1750803035292,-460.0,0.00016438,2]
[367454594,1750803035302,-460.0,0.00016438,2]
[367454596,1750803035311,-430.0,0.00016438,2]
[367454598,1750803035320,-460.0,0.00016438,2]
[367454600,1750803035330,-162.48177066,0.00016438,2]
[367454601,1750803035339,-460.0,0.00016438,2]
[367454603,1750803035349,-460.0,0.00016438,2]
[367454606,1750803035359,-460.0,0.00016438,2]
[367454608,1750803035368,-460.0,0.00016438,2]
[367454610,1750803035377,-460.0,0.00016438,2]
[367454612,1750803035387,-400.0,0.00016438,2]
[367454613,1750803035396,-330.0,0.00016438,2]
[367454616,1750803035406,-460.0,0.00016438,2]
[367454618,1750803035417,-460.0,0.00016438,2]
[367454620,1750803035427,-460.0,0.00016438,2]
[367454622,1750803035436,-460.0,0.00016438,2]
[367454623,1750803035445,-400.0,0.00016438,2]
[367454626,1750803035455,-460.0,0.00016438,2]
[367454627,1750803035464,-460.89733182,0.00016438,2]
[367454630,1750803035474,-460.0,0.00016438,2]
[367454632,1750803035484,-460.0,0.00016438,2]
[367454634,1750803035496,-460.0,0.00016438,2]
[367454636,1750803035505,-390.0,0.00016438,2]
[367454637,1750803035515,-460.0,0.00016438,2]
[367454639,1750803035524,-460.0,0.00016438,2]
[367454641,1750803035533,-350.0,0.00016438,2]
[367454643,1750803035543,-460.0,0.00016438,2]
[367454646,1750803035553,-460.0,0.00016438,2]
[367454648,1750803035562,-460.0,0.00016438,2]
[367454650,1750803035572,-460.0,0.00016438,2]
[367454652,1750803035582,-460.0,0.00016438,2]
[367454654,1750803035591,-400.0,0.00016438,2]
[367454656,1750803035601,-460.0,0.00016438,2]
[367454658,1750803035610,-463.11546967,0.00016438,2]
[367454659,1750803035620,-460.0,0.00016438,2]
[367454662,1750803035630,-460.0,0.00016438,2]
[367454663,1750803035639,-460.0,0.00016438,2]
[367454666,1750803035649,-500.0,0.00016438,2]
[367454667,1750803035659,-479.538,0.00016438,2]
[367454670,1750803035671,-460.0,0.00016438,2]
[367454671,1750803035681,-460.0,0.00016438,2]
[367454673,1750803035691,-460.0,0.00016438,2]
[367454676,1750803035700,-460.0,0.00016438,2]
[367454677,1750803035711,-460.0,0.00016438,2]
[367454679,1750803035720,-460.0,0.00016438,2]
[367454681,1750803035729,-460.0,0.00016438,2]
[367454683,1750803035739,-377.74580928,0.00016438,2]
[367454685,1750803035749,-460.0,0.00016438,2]
[367454687,1750803035759,-460.98051584,0.00016438,2]
[367454689,1750803035769,-460.0,0.00016438,2]
[367454691,1750803035778,-400.0,0.00016438,2]
[367454694,1750803035788,-460.0,0.00016438,2]
[367454696,1750803035798,-460.0,0.00016438,2]
[367454698,1750803035807,-460.0,0.00016438,2]
[367454700,1750803035816,-460.0,0.00016438,2]
[367454701,1750803035826,-460.0,0.00016438,2]
[367454704,1750803035835,-460.0,0.00016438,2]
[367454705,1750803035844,-460.0,0.00016438,2]
[367454708,1750803035855,-460.0,0.00016438,2]
[367454710,1750803035864,-460.0,0.00016438,2]